Cogmind - Beta 14 @@@ ROGUE MODE // 2024.12.21 @ 19:01:35 Player: blackdogzx Result: Destroyed by G-47 Trooper with Particle Gun Performance ------------- Evolutions (2) 1000 Regions Visited (3) 600 Robots Destroyed (24) 120 Value Destroyed (603) 603 Prototype IDs (0) 0 Alien Tech Used (0) 0 Bonus (0) 0 TOTAL SCORE: 2323 Bonus ------- None Cogmind --------- Core Integrity 0/550 Matter 225/300 Energy 99/100 System Corruption 0% Temperature Cool (9) Movement Core (50) Location -8/Materials Parts ------- > --- POWER (1) -------- (None) > --- PROPULSION (2) --- (None) > --- UTILITY (6) ------ Hacking Suite > --- WEAPON (2) ------- Minigun > --- INVENTORY (5) ---- Particle Gun Peak State ------------ > --- POWER ------------ Light Deuterium Engine > --- PROPULSION ------- Aluminum Leg Aluminum Leg > --- UTILITY ---------- Small Storage Unit Hacking Suite > --- WEAPON ----------- Improved Light Cannon Datajack > --- INVENTORY -------- Light Ion Engine [Rating: 12] Favorites ----------- Power Light Ion Engine Engine Light Ion Engine Propulsion Aluminum Leg Leg Aluminum Leg Utility Small Storage Unit Storage Small Storage Unit Processor Targeting Computer Hackware Hacking Suite Protection Core Shielding Weapon Assault Rifle Ballistic Gun Assault Rifle Ballistic Cannon Improved Light Cannon Launcher Grenade Launcher Special Melee Weapon Datajack Build | -11 -10 -9 -8 ------- Run | Yrd Mat Mat Mat Slots Evolved 4 | . . 2 2 Power . | . . . . Propulsion . | . . . . Utility 4 | . . 2 2 Weapon . | . . . . Parts Attached 19 | 4 5 3 7 Power 4 | . 1 . 3 Engine 4 | . 1 . 3 Core . | . . . . Reactor . | . . . . Propulsion 6 | 2 2 . 2 Treads . | . . . . Leg 6 | 2 2 . 2 Wheel . | . . . . Hover . | . . . . Flight . | . . . . Utility 4 | 1 1 1 1 Device . | . . . . Storage 1 | 1 . . . Processor 1 | . 1 . . Hackware 1 | . . 1 . Protection 1 | . . . 1 Artifact . | . . . . Weapon 5 | 1 1 2 1 Energy Gun . | . . . . Energy Cannon . | . . . . Ballistic Gun 2 | 1 . . 1 Ballistic Cannon 1 | . . 1 . Launcher 1 | . 1 . . Special Weapon . | . . . . Impact Weapon . | . . . . Slashing Weapon . | . . . . Piercing Weapon . | . . . . Special Melee Weapon 1 | . . 1 . Unidentified Prototypes . | . . . . Parts Lost 14 | . 2 3 9 Power 3 | . . 1 2 Propulsion 4 | . 1 . 3 Utility 3 | . . 1 2 Weapon 4 | . 1 1 2 Highest Loss Streak 7 | . 1 2 7 To Critical Strikes . | . . . . Average Slot Usage (%) 67 | . 75 80 51 Engine 4 | . 2 8 6 Leg 20 | . 27 22 12 Storage 11 | . 14 11 7 Processor 6 | . 12 7 . Hackware 5 | . . 11 9 Ballistic Gun 7 | . 14 5 . Ballistic Cannon 3 | . . 5 7 Launcher 2 | . 5 . . Special Melee Weapon 4 | . . 11 5 Peak Build Rating 12 | 4 6 11 12 Average Rating 7 | 2 5 9 9 On Entrance 4 | . 4 6 9 Naked Turns . | . . . . Heaviest Build 15 | 7 10 13 15 Greatest Support 20 | 20 20 20 20 Greatest Overweight (x) 3 | . . . 3 Average Overweight (x) . | . . . . Largest Inventory Capacity 8 | 8 8 8 8 Average Capacity 7 | 6 8 8 7 Most Carried 3 | . 3 3 3 Average Carried 1 | . 1 1 1 Final Capacity 8 | 8 8 8 5 Final Carried 3 | . 3 1 1 Class Distribution -------------------- 70% | Mutant 29% | Scavenger-Mutant Dominant Class ---------------- Mutant | -10/Materials Scavenger-Mutant | -9/Materials Mutant | -8/Materials Resources | -11 -10 -9 -8 ----------- Run | Yrd Mat Mat Mat Matter Collected 605 | 240 259 . 106 Remotely . | . . . . Salvage Created 638 | . 367 . 271 Parts 43 | . 32 . 11 Haulers Intercepted . | . . . . Recyclers Shooed . | . . . . Parts Field Recycled . | . . . . Retrieved Matter . | . . . . Parts Self-Destructed . | . . . . Prevented . | . . . . Kills | -11 -10 -9 -8 ------- Run | Yrd Mat Mat Mat Combat Hostiles Destroyed 17 | . 11 . 6 Guns 8 | . 5 . 3 Cannons 2 | . . . 2 AOE 7 | . 6 . 1 Classes Destroyed 7 | . 6 . 1 Builder 2 | . 2 . . Tunneler 1 | . . . 1 Recycler 1 | . 1 . . Operator 1 | . 1 . . Watcher 2 | . 2 . . Swarmer 6 | . 6 . . Grunt 11 | . 5 . 6 Best Kill Streak 11 | . 11 . 3 Combat Bots Only 5 | . 5 . 3 Max Kills in Single Turn 4 | . 4 . 1 Gunslinging . | . . . . Exploded 2 | . 2 . 1 Melee . | . . . . Uniques/NPCs Destroyed . | . . . . Combat | -11 -10 -9 -8 -------- Run | Yrd Mat Mat Mat Hostile Shots Fired 231 | . 64 46 121 Missed 77 | . 14 20 43 Damage Taken 1991 | . 493 266 1232 Core 741 | . 133 56 552 Absorbed by Shields . | . . . . Redirected to Shielding 51 | . . . 51 Core Remaining (%) 77 | 100 46 86 . Volleys Fired 82 | . 51 . 31 Largest 2 | . 2 . 1 Hottest 50 | . 50 . 39 Shots Fired 89 | . 58 . 31 Gun 66 | . 51 . 15 Cannon 16 | . . . 16 Launcher 7 | . 7 . . Special . | . . . . Kinetic 82 | . 51 . 31 Thermal . | . . . . Explosive 7 | . 7 . . Electromagnetic . | . . . . Robot Hit Streak 12 | . 7 . 12 Robot Miss Streak 5 | . 5 . 2 Penetration Max . | . . . . Secondary Targets . | . . . . Shots Hit Robots 64 | . 33 3 28 Core Hits 38 | . 26 . 12 Critical Kills . | . . . . Critical Parts Destroyed 2 | . 1 . 1 Critical Strikes 4 | . 1 . 3 Destroy 2 | . 1 . 1 Blast 2 | . . . 2 Melee Attacks 6 | . . 3 3 Impact . | . . . . Slashing . | . . . . Piercing . | . . . . Sneak Attacks 5 | . . 2 3 Combat Hostiles . | . . . . Follow-up Attacks . | . . . . Damage Inflicted 1433 | . 958 . 475 Guns 626 | . 408 . 218 Cannons 257 | . . . 257 Explosions 538 | . 538 . . Melee . | . . . . Ramming 12 | . 12 . . Kinetic 883 | . 408 . 475 Thermal . | . . . . Explosive 538 | . 538 . . Electromagnetic . | . . . . Impact . | . . . . Slashing . | . . . . Piercing . | . . . . Highest Corruption . | . . . . Average Corruption . | . . . . Corruption Purged . | . . . . Corruption Blocked . | . . . . Overload Shots . | . . . . Overflow Damage 19 | . 18 . 1 Projectiles 1 | . . . 1 Explosions 18 | . 18 . . Melee . | . . . . Knockbacks . | . . . . Impact . | . . . . Kinetic . | . . . . Secondary . | . . . . Self-Inflicted Damage 18 | . 18 . . Shots 1 | . 1 . . Rammed . | . . . . Targets Rammed 3 | . 3 . . Kicked 3 | . 3 . . Crushed . | . . . . Highest Temperature 30 | . 3 . 30 Average Temperature 9 | . 3 . 9 Received Heat Transfer 1041 | . 156 93 792 Siege Activations . | . . . . Robots Corrupted . | . . . . Combat Hostiles . | . . . . Parts Fried . | . . . . Impact Corruptions . | . . . . Robots Melted . | . . . . Combat Hostiles . | . . . . Parts Melted . | . . . . Heat Transferred . | . . . . Parts Sabotaged . | . . . . Parts Stolen . | . . . . Parts Stripped . | . . . . Power Chain Reactions . | . . . . Alert | -11 -10 -9 -8 ------- Run | Yrd Mat Mat Mat Peak Influence 376 | . 376 74 274 Initial 74 | . . 74 24 Average 151 | . 241 66 104 Maximum Alert Level 1 | . 1 . 1 Low Security (%) 73 | 100 42 100 92 Level 1 26 | . 57 . 7 Level 2 . | . . . . Level 3 . | . . . . Level 4 . | . . . . Level 5 . | . . . . High Security . | . . . . Max Security . | . . . . Squads Dispatched 6 | . 2 . 4 Investigation . | . . . . Extermination . | . . . . Reinforcement 6 | . 2 . 4 Assault . | . . . . Garrison . | . . . . Intercept . | . . . . Searches Triggered . | . . . . Construction Impeded . | . . . . Haulers Reinforced . | . . . . Active Scanning Responses . | . . . . Cargo Convoy Interrupts . | . . . . Stealth | -11 -10 -9 -8 --------- Run | Yrd Mat Mat Mat Distress Signals 4 | . 1 . 3 Communications Jammed . | . . . . Distress Signals . | . . . . Times Spotted 55 | . 17 11 27 Peak Tracking Total 15 | . 6 10 15 Tactical Retreats 2 | . . . 2 Traps | -11 -10 -9 -8 ------- Run | Yrd Mat Mat Mat Traps Triggered . | . . . . Indirectly . | . . . . Trap Hack Attempts . | . . . . Triggered . | . . . . Disarmed . | . . . . Reprogrammed . | . . . . Reused . | . . . . Traps Extracted . | . . . . Installed . | . . . . Triggered . | . . . . Machines | -11 -10 -9 -8 ---------- Run | Yrd Mat Mat Mat Machines Disabled 2 | . 2 . . Max in Single Turn 1 | . 1 . . Machines Repaired . | . . . . Machines Dismantled . | . . . . Machines Sabotaged . | . . . . Overloaded Fab Kills . | . . . . Hacking | -11 -10 -9 -8 --------- Run | Yrd Mat Mat Mat Machines Accessed . | . . . . Terminals . | . . . . Fabricators . | . . . . Repair Stations . | . . . . Recycling Units . | . . . . Scanalyzers . | . . . . Garrison Access . | . . . . Total Hacks . | . . . . Successful . | . . . . Failed . | . . . . Catastrophic . | . . . . Database Lockouts . | . . . . Manual . | . . . . Terminals . | . . . . Fabricators . | . . . . Repair Stations . | . . . . Recycling Units . | . . . . Scanalyzers . | . . . . Garrison Access . | . . . . Terminal Hacks . | . . . . Fabricator Hacks . | . . . . Repair Station Hacks . | . . . . Recycling Unit Hacks . | . . . . Scanalyzer . | . . . . Garrison Access Hacks . | . . . . Unauthorized Hacks . | . . . . Terminals . | . . . . Fabricators . | . . . . Repair Stations . | . . . . Recycling Units . | . . . . Scanalyzers . | . . . . Garrison Access . | . . . . Data Cores Recovered . | . . . . Used . | . . . . Hacking Detections . | . . . . Full Trace Events . | . . . . Feedback Events . | . . . . Feedback Blocked . | . . . . Robot Schematics Acquired . | . . . . Robots Built . | . . . . Authchips . | . . . . Time . | . . . . Total Robot Build Rating . | . . . . Part Schematics Acquired . | . . . . Parts Built . | . . . . Authchips . | . . . . Time . | . . . . Total Part Build Rating . | . . . . Parts Repaired . | . . . . Time . | . . . . Parts Recycled . | . . . . Recycled Matter . | . . . . Retrieved Matter . | . . . . Retrieved Components . | . . . . Parts Scanalyzed . | . . . . Part Schematics Acquired . | . . . . Parts Damaged . | . . . . Bothacking | -11 -10 -9 -8 ------------ Run | Yrd Mat Mat Mat Used RIF Installer . | . . . . Robots Hacked 2 | . . . 2 Non-combat 2 | . . . 2 Combat . | . . . . Robot Hacks Applied 3 | . . . 3 no_distress 1 | . . . 1 find_recycling 2 | . . . 2 Relay Couplers Released . | . . . . Fabnet Peak Effective % . | . . . . Robots Rewired . | . . . . Allies Hacked . | . . . . Hacks Repelled . | . . . . Allies | -11 -10 -9 -8 -------- Run | Yrd Mat Mat Mat Total Allies . | . . . . Largest Group . | . . . . Highest-Rated Group . | . . . . Highest-Rated Ally . | . . . . Total Orders . | . . . . Ally Attacks . | . . . . Total Damage . | . . . . Kills . | . . . . Allies Corrupted . | . . . . Allies Melted . | . . . . Intel | -11 -10 -9 -8 ------- Run | Yrd Mat Mat Mat Robot Analysis Total . | . . . . Derelict Logs Recovered . | . . . . Drone Launches . | . . . . Drone Recoveries . | . . . . Exploration | -11 -10 -9 -8 ------------- Run | Yrd Mat Mat Mat Turns Passed 1002 | 40 420 174 368 Spaces Moved 634 | 35 243 138 218 Core 70 | 10 . . 60 Treads . | . . . . Legs 564 | 25 243 138 158 Wheels . | . . . . Hover . | . . . . Flight . | . . . . Fastest Speed 50 | 50 120 120 50 Average Speed 116 | 100 120 120 113 Slowest Speed 200 | 120 120 120 200 Overloaded Moves . | . . . . Propulsion Burnouts . | . . . . Robots Hopped . | . . . . Cave-ins Triggered . | . . . . Exploration Rate (%) 25 | 4 50 27 21 Regions Visited 3 Branch Regions . Pre-discovered Areas . | . . . . Known Exits Taken . | . . . . Unknown Exits Taken 3 | 1 1 1 . Scrap Searched . | . . . . Spaces Dug . | . . . . Terrain Destroyed 43 | . 43 . . Melee . | . . . . Projectile . | . . . . AOE 43 | . 43 . . Terrain Rammed . | . . . . Walls Destroyed . | . . . . Machines Disabled . | . . . . Actions | -11 -10 -9 -8 --------- Run | Yrd Mat Mat Mat Total 802 | 38 311 144 309 Wait 53 | . 6 1 46 Move 631 | 34 242 137 218 Hop . | . . . . Pick Up 6 | . 3 . 3 Fast Attach 11 | 4 4 1 2 Attach 5 | . . 2 3 Detach . | . . . . Swap 3 | . 1 . 2 Drop 2 | . 1 . 1 Fire 82 | . 51 . 31 Melee 6 | . . 3 3 Ram . | . . . . Kick 3 | . 3 . . Crush . | . . . . Escape Stasis . | . . . . Rewire . | . . . . Trap . | . . . . Miscellaneous . | . . . . Route ------- -11/Scrapyard -10/Materials (discovered 2 exits: [*Mat] / [*Min]) -9/Materials -8/Materials History --------- Turn | Location | Event 6 | -11/Scrapyard | Discovered new exit (range 15) 41 | -11/Scrapyard | Entered Materials 95 | -10/Materials | Discovered new exit (range 12) 312 | -10/Materials | Build established: Mutant 320 | -10/Materials | Core integrity fell below 50% 425 | -10/Materials | Discovered new exit (range 16) 461 | -10/Materials | Entered another Materials area 461 | -9/Materials | Evolved 2 slots: Utility x2 624 | -9/Materials | Discovered new exit (range 10) 635 | -9/Materials | Entered another Materials area 635 | -8/Materials | Evolved 2 slots: Utility x2 945 | -8/Materials | Core integrity fell below 50% 983 | -8/Materials | Lost 7 parts (1p2n2u2w) 984 | -8/Materials | Core integrity fell below 20% 1003 | -8/Materials | Destroyed by G-47 Trooper with Particle Gun Last Messages --------------- 00962_ K-01 Serf cleans the Electrolysis Chamber. 00964_ Acquired Minigun. 00971_ K-01 Serf collects debris. 00977_ Electrolysis Chamber disabled. 00980_ G-47 Trooper destroyed. 00982_ G-47 Trooper suffers critical hit (Destroy). 00982_ Destroyed Aluminum Leg. 00983_ G-47 Trooper destroyed. 00986_ K-01 Serf collects debris. 00991_ Lgt. Ion Engine destroyed. 00993_ K-01 Serf collects debris. 00994_ G-47 Trooper destroyed. 00997_ K-01 Serf collects debris. 00997_ Critical hit (Burn: +37). 01000_ W-25 Informer sends out distress signal. 01000_ K-01 Serf collects debris. 01000_ R-06 Scavenger collects Lgt. Nuclear Core. Map ----- +----------------------------------------------------+ | ?????????????????????????????????????????????????? | | ?????????????????????????????????????????????????? | | ?????????????????????????????????????????????????? | | ?????????????????????????????????????????????????? | | ?????????????????????????????????????????????????? | | ?????????????????????????????????????????????????? | | ??????????????????????????? ???????????????????? | | ??????????????????????????? ??????????????????? | | ??????????????????????????? #??????????????????? | | ??????????????????????????# #??????????????????? | | ??????????????????????????# #??????????????????? | | ??????????????????????????# #??????????????????? | | ??????????????????????????# #??????????????????? | | ??????????????????????????# #??????????????????? | | ??????????????????????????# #??????????????????? | | ??????????????????????????# #??????????????????? | | ########??????????????????# #??????????????????? | | ???######?????????# #??????????????????? | | ^ #?? ??######## ########### ??????? | | // # ? ?#?# ?????? | | // # #?# r ?????? | | # #?# gg ?????? | | # #?# ####g########????????????? | | # = #?# # %k! #???????????????? | | # " #?# # "" #???????????????? | | # """ #?# #@ """ #???????????????? | | #?? ???# # """ #???????????????? | | " " #####"###### # #???????????????? | | "G" # """ #???????????????? | | """ != # """ #???????????????? | | !%| # """ #???????????????? | | %[ != # #???????????????? | | ## ! ## ##########???????????????? | | #/ % #???????????????????????## | | # # !! #???????????????????????# | | # % ###############?????????# | | # #?????????# | | # ########### | | ## +##### | | ? #?# ############ | | # T #?# ###+###########??????????# | | ?? #?###+###?# % #????????????# | | ????? ? #?????????# """ #????????????# | | ????????? """ #?????????# """"" #???????????? | | ??????????# """ #?????????# """"%#??????????? | | ??????????# """ #?????????# """ #?????????? | | ??????????# #?????????# """ #??????????### | | ??????????# """ #?????????# #????????????# | | ??????????# ??? #?????????# #????????????# | | ??????????#?????#?????????###########????????????# | +----------------------------------------------------+ Best States ------------- Heat Dissipation 31 Energy Generation 14 Energy Capacity 140 Matter Stores 300 Matter Capacity 300 Sight Range 16 Terrain Scan Density 10 Core Shielding 20 Evasion (%) 55 Targeting Accuracy 5 Offensive Hacking 10 Item Schematics ----------------- None Robot Schematics ------------------ None Fabricated ------------ Nothing Alien Tech Used ----------------- None Achievements -------------- None Challenges ------------ None Game ------ Seed GuidanceMinesnifferShifter Manual? 0 Play Time 00:13:07 Cumulative 21.3 hours Start 2024.12.21 @ 18:48:44 End 2024.12.21 @ 19:01:35 Sessions 1 Manual Loads 0 Difficulty Rogue Special Mode None Game No. 34 Rogue 31 Adventurer 3 Explorer 0 Win Type - Total 0 Types 0/0/0/0/0/0/0/0/0 Lore% 9 Gallery% 19 Achievement% 15 Wizard Run 0 Options --------- Layout 1 ASCII 0 Keyboard 1 Movement Numpad Keybinds 0 Fullscreen 1 Font 24/Smallcaps Map View 50x35 Zoom Use 0% Tactical HUD 1 Map Filters NONE Filters NONE Steam 1 RUN: 2113117b-f789-460b-9d5e-26eba9f1bd36